fUST/lending_fUST_20250808
["ID","MTS","AMOUNT","RATE_DAILY","PERIOD"]
[377901990,1754609443171,-571.46,0.00022739,2]
[377901992,1754609443180,-460.0,0.00022739,2]
[377901994,1754609443190,-460.0,0.00022739,2]
[377901996,1754609443199,-460.0,0.00022739,2]
[377901998,1754609443208,-460.0,0.00022739,2]
[377902000,1754609443218,-2021.56,0.00022739,2]
[377902002,1754609443227,-496.69,0.00022739,2]
[377902004,1754609443237,-566.02,0.00022739,2]
[377902006,1754609443247,-842.27,0.00022739,2]
[377902008,1754609443256,-298.90222615,0.00022739,2]
[377902010,1754609443265,-467.08,0.00022739,2]
[377902012,1754609443275,-2365.98,0.00022739,2]
[377902014,1754609443284,-1618.21,0.00022739,2]
[377902016,1754609443295,-460.0,0.00022739,2]
[377902018,1754609443304,-215.17635366,0.00022739,2]
[377902020,1754609443313,-692.59,0.00022739,2]
[377902022,1754609443322,-460.0,0.00022739,2]
[377902024,1754609443331,-786.74,0.00022739,2]
[377902026,1754609443340,-460.0,0.00022739,2]
[377902028,1754609443351,-483.41811614,0.00022739,2]
[377902030,1754609443361,-303.49,0.00022739,2]
[377902032,1754609443370,-432.85458816,0.00022739,2]
[377902034,1754609443380,-460.0,0.00022739,2]
[377902036,1754609443390,-610.26,0.00022739,2]
[377902038,1754609443399,-460.0,0.00022739,2]
[377902040,1754609443410,-539.69,0.00022739,2]
[377902042,1754609443419,-460.0,0.00022739,2]
[377902044,1754609443429,-460.0,0.00022739,2]
[377902046,1754609443438,-460.0,0.00022739,2]
[377902048,1754609443448,-460.0,0.00022739,2]
[377902050,1754609443457,-627.43,0.00022739,2]
[377902052,1754609443466,-460.0,0.00022739,2]
[377902054,1754609443475,-755.3,0.00022739,2]
[377902056,1754609443485,-460.0,0.00022739,2]
[377902058,1754609443494,-623.93,0.00022739,2]
[377902060,1754609443502,-460.0,0.00022739,2]
[377902062,1754609443511,-460.0,0.00022739,2]
[377902064,1754609443520,-236.63,0.00022739,2]
[377902066,1754609443529,-477.13,0.00022739,2]
[377902068,1754609443538,-1239.37,0.00022739,2]
[377902070,1754609443547,-460.0,0.00022739,2]
[377902072,1754609443556,-16755.59456279,0.000228,2]
[377902074,1754609443566,-310.22483362,0.00022869,2]
[377902076,1754609443576,-196.87884679,0.00022873,2]
[377902078,1754609443586,-238202.18692005,0.000229,7]
[377902080,1754609443597,-7750.10721445,0.000229,3]
[377902188,1754609445895,-476.22,0.00021917,2]
[377902189,1754609445906,-476.22,0.00022191,2]
[377902190,1754609445915,-476.22,0.00022465,2]
[377902191,1754609445925,-476.22,0.00022739,2]
[377902192,1754609445934,-12204.17579479,0.000229,3]
[377902193,1754609446040,-850.26,0.00021917,2]
[377902194,1754609446051,-280.10586667,0.000229,3]
[377902195,1754609446070,-160.0,0.000229,7]
[377902196,1754609446079,-215.31718835,0.000229,7]
[377902197,1754609446089,-160.0,0.00022929,2]
[377902198,1754609446098,-312.16666667,0.00023,3]
[377902199,1754609446108,-160.0,0.00023,3]
[377902200,1754609446117,-160.0,0.00023,3]
[377902201,1754609446126,-987.0619451,0.00023,3]
[377902202,1754609446138,-500.0,0.00023,3]
[377902225,1754609570867,150.0,0.000208,2]
[377902227,1754609797067,161.720321,0.00013699,2]
[377902228,1754609797304,161.720321,0.00020951,2]
[377902231,1754609910244,168.185798,0.00021328,2]
[377902239,1754609979838,159.11,0.000213,3]
[377902240,1754610033599,260.0,0.000214,2]
[377902242,1754610184305,1000.0,0.00027999,30]
[377902273,1754610422223,249.0,0.0002148,2]
[377902276,1754610612447,1125.72983104,0.0003,120]
[377902584,1754610637992,-177.13190843,0.00021815,2]
[377902585,1754610638003,-300.0,0.00021915,2]
[377902586,1754610638013,-1200.0,0.00021915,2]
[377902587,1754610638022,-482.39670784,0.00021916,2]
[377902589,1754610638031,-500.0,0.00021916,2]
[377902591,1754610638040,-500.0,0.00021916,2]
[377902592,1754610638050,-500.0,0.00021916,2]
[377902594,1754610638059,-500.0,0.00021916,2]
[377902596,1754610638068,-500.0,0.00021916,2]
[377902598,1754610638077,-500.0,0.00021916,2]
[377902600,1754610638087,-500.0,0.00021916,2]
[377902602,1754610638096,-500.0,0.00021916,2]
[377902604,1754610638106,-500.0,0.00021916,2]
[377902605,1754610638118,-500.0,0.00021916,2]
[377902607,1754610638129,-500.0,0.00021916,2]
[377902609,1754610638139,-500.0,0.00021916,2]
[377902611,1754610638148,-500.0,0.00021916,2]
[377902613,1754610638158,-500.0,0.00021916,2]
[377902615,1754610638167,-500.0,0.00021916,2]
[377902616,1754610638176,-500.0,0.00021916,2]
[377902618,1754610638185,-500.0,0.00021916,2]
[377902620,1754610638196,-500.0,0.00021916,2]
[377902622,1754610638205,-500.0,0.00021916,2]
[377902624,1754610638214,-500.0,0.00021916,2]
[377902625,1754610638224,-500.0,0.00021916,2]
[377902627,1754610638233,-500.0,0.00021916,2]
[377902629,1754610638242,-513.26084939,0.00021916,2]
[377902631,1754610638251,-460.0,0.00021917,2]
[377902633,1754610638261,-509.55098293,0.00021917,2]
[377902635,1754610638270,-460.0,0.00021917,2]
[377902636,1754610638279,-480.72218901,0.00021917,2]
[377902638,1754610638289,-460.0,0.00021917,2]
[377902640,1754610638298,-460.0,0.00021917,2]
[377902642,1754610638307,-460.0,0.00021917,2]
[377902644,1754610638316,-460.0,0.00021917,2]
[377902645,1754610638326,-460.0,0.00021917,2]
[377902647,1754610638335,-460.0,0.00021917,2]
[377902649,1754610638345,-460.0,0.00021917,2]
[377902651,1754610638354,-460.0,0.00021917,2]
[377902653,1754610638363,-460.0,0.00021917,2]
[377902655,1754610638373,-460.0,0.00021917,2]
[377902656,1754610638382,-460.0,0.00021917,2]
[377902658,1754610638391,-460.0,0.00021917,2]
[377902660,1754610638400,-460.0,0.00021917,2]
[377902662,1754610638409,-460.0,0.00021917,2]
[377902664,1754610638419,-500.0,0.00021917,2]
[377902666,1754610638429,-460.0,0.00021917,2]
[377902667,1754610638438,-460.0,0.00021917,2]
[377902669,1754610638448,-417.5256129,0.00021917,2]
[377902671,1754610638458,-460.0,0.00021917,2]
[377902673,1754610638467,-460.0,0.00021917,2]
[377902675,1754610638476,-462.36580427,0.00021917,2]
[377902677,1754610638486,-460.0,0.00021917,2]
[377902678,1754610638495,-460.0,0.00021917,2]
[377902680,1754610638504,-460.0,0.00021917,2]
[377902682,1754610638514,-207.56785837,0.00021917,2]
[377902684,1754610638523,-460.0,0.00021917,2]
[377902686,1754610638532,-460.0,0.00021917,2]
[377902688,1754610638542,-460.0,0.00021917,2]
[377902690,1754610638553,-460.0,0.00021917,2]
[377902691,1754610638562,-460.0,0.00021917,2]
[377902693,1754610638571,-460.0,0.00021917,2]
[377902694,1754610638580,-460.0,0.00021917,2]
[377902695,1754610638589,-460.0,0.00021917,2]
[377902696,1754610638598,-460.0,0.00021917,2]
[377902697,1754610638607,-460.0,0.00021917,2]
[377902698,1754610638616,-392.03481552,0.00021917,2]
[377902699,1754610638625,-460.0,0.00021917,2]
[377902700,1754610638634,-460.0,0.00021917,2]
[377902701,1754610638643,-460.0,0.00021917,2]
[377902702,1754610638652,-460.0,0.00021917,2]
[377902703,1754610638661,-460.0,0.00021917,2]
[377902704,1754610638669,-460.0,0.00021917,2]
[377902705,1754610638678,-460.0,0.00021917,2]
[377902706,1754610638687,-460.0,0.00021917,2]
[377902707,1754610638697,-460.0,0.00021917,2]
[377902708,1754610638706,-460.0,0.00021917,2]
[377902709,1754610638715,-460.0,0.00021917,2]
[377902710,1754610638724,-460.0,0.00021917,2]
[377902711,1754610638734,-460.0,0.00021917,2]
[377902712,1754610638743,-468.69196498,0.00021917,2]
[377902713,1754610638752,-284.10782562,0.00021917,2]
[377902714,1754610638761,-460.0,0.00021917,2]
[377902715,1754610638771,-460.0,0.00021917,2]
[377902716,1754610638782,-460.0,0.00021917,2]
[377902717,1754610638795,-460.0,0.00021917,2]
[377902718,1754610638806,-460.0,0.00021917,2]
[377902719,1754610638819,-460.0,0.00021917,2]
[377902720,1754610638831,-460.0,0.00021917,2]
[377902721,1754610638842,-460.0,0.00021917,2]
[377902722,1754610638853,-462.78268466,0.00021917,2]
[377902723,1754610638863,-460.0,0.00021917,2]
[377902724,1754610638875,-460.0,0.00021917,2]
[377902725,1754610638886,-460.0,0.00021917,2]
[377902726,1754610638898,-460.0,0.00021917,2]
[377902727,1754610638909,-460.0,0.00021917,2]
[377902728,1754610638920,-460.0,0.00021917,2]
[377902729,1754610638931,-460.0,0.00021917,2]
[377902730,1754610638943,-460.0,0.00021917,2]
[377902731,1754610638954,-460.0,0.00021917,2]
[377902732,1754610638966,-460.0,0.00021917,2]
[377902733,1754610638977,-460.0,0.00021917,2]
[377902734,1754610638990,-460.0,0.00021917,2]
[377902735,1754610639009,-307.1921634,0.00021917,2]
[377902736,1754610639024,-460.0,0.00021917,2]
[377902737,1754610639036,-460.0,0.00021917,2]
[377902738,1754610639054,-212.16823952,0.00021917,2]
[377902739,1754610639068,-334.49017454,0.00021917,2]
[377902740,1754610639303,-125.50982546,0.00021917,2]
[377902741,1754610639314,-460.0,0.00021917,2]
[377902742,1754610639324,-462.54539418,0.00021917,2]
[377902743,1754610639335,-460.0,0.00021917,2]
[377902744,1754610639345,-460.0,0.00021917,2]
[377902745,1754610639354,-460.0,0.00021917,2]
[377902746,1754610639366,-460.0,0.00021917,2]
[377902747,1754610639377,-460.0,0.00021917,2]
[377902748,1754610639387,-460.0,0.00021917,2]
[377902749,1754610639397,-460.0,0.00021917,2]
[377902750,1754610639407,-460.0,0.00021917,2]
[377902751,1754610639417,-460.0,0.00021917,2]
[377902752,1754610639427,-460.0,0.00021917,2]
[377902753,1754610639438,-460.0,0.00021917,2]
[377902754,1754610639448,-641.17,0.00021917,2]
[377902755,1754610639459,-460.0,0.00021917,2]
[377902756,1754610639470,-472.22931958,0.00021917,2]
[377902758,1754610639481,-460.0,0.00021917,2]
[377902759,1754610639492,-460.0,0.00021917,2]
[377902760,1754610639503,-460.0,0.00021917,2]
[377902761,1754610639514,-460.0,0.00021917,2]
[377902763,1754610639525,-460.0,0.00021917,2]
[377902765,1754610639537,-460.0,0.00021917,2]
[377902767,1754610639548,-460.0,0.00021917,2]
[377902768,1754610639559,-460.0,0.00021917,2]
[377902769,1754610639569,-460.0,0.00021917,2]
[377902770,1754610639580,-460.0,0.00021917,2]
[377902771,1754610639591,-460.0,0.00021917,2]
[377902772,1754610639602,-460.0,0.00021917,2]
[377902773,1754610639613,-2781.79,0.00021917,2]
[377902774,1754610639624,-460.0,0.00021917,2]
[377902775,1754610639635,-460.0,0.00021917,2]
[377902776,1754610639646,-351.36848967,0.00021917,2]
[377902777,1754610639658,-460.0,0.00021917,2]
[377902778,1754610639669,-460.0,0.00021917,2]
[377902779,1754610639680,-460.0,0.00021917,2]
[377902780,1754610639690,-309.92249952,0.00021917,2]
[377902781,1754610639739,-150.07750048,0.00021917,2]
[377902782,1754610639750,-460.0,0.00021917,2]
[377902783,1754610639761,-460.0,0.00021917,2]
[377902784,1754610639772,-460.0,0.00021917,2]
[377902785,1754610639784,-460.0,0.00021917,2]
[377902786,1754610639795,-895.47701414,0.00021917,2]
[377902787,1754610639808,-104.52298586,0.00021917,2]
[377902788,1754610639819,-460.0,0.00021917,2]
[377902789,1754610639830,-460.0,0.00021917,2]
[377902790,1754610639840,-460.0,0.00021917,2]
[377902791,1754610639852,-460.0,0.00021917,2]
[377902792,1754610639863,-460.0,0.00021917,2]
[377902793,1754610639875,-460.0,0.00021917,2]
[377902794,1754610639886,-549.64,0.00021917,2]
[377902795,1754610639897,-460.0,0.00021917,2]
[377902796,1754610639908,-498.70348483,0.00021917,2]
[377902797,1754610639919,-582.0,0.00021917,2]
[377902798,1754610639929,-460.0,0.00021917,2]
[377902799,1754610639940,-460.0,0.00021917,2]
[377902800,1754610639951,-462.56675746,0.00021917,2]
[377902801,1754610639962,-460.0,0.00021917,2]
[377902802,1754610639973,-460.0,0.00021917,2]
[377902803,1754610639984,-460.0,0.00021917,2]
[377902804,1754610639995,-462.688541,0.00021917,2]
[377902805,1754610640006,-460.0,0.00021917,2]
[377902806,1754610640017,-460.0,0.00021917,2]
[377902807,1754610640028,-460.0,0.00021917,2]
[377902808,1754610640039,-460.0,0.00021917,2]
[377902809,1754610640050,-280.54880324,0.00021917,2]
[377902810,1754610640061,-460.0,0.00021917,2]
[377902811,1754610640072,-460.0,0.00021917,2]
[377902812,1754610640083,-460.0,0.00021917,2]
[377902813,1754610640093,-500.0,0.00021917,2]
[377902814,1754610640107,-460.0,0.00021917,2]
[377902815,1754610640120,-460.0,0.00021917,2]
[377902816,1754610640131,-460.0,0.00021917,2]
[377902817,1754610640142,-460.0,0.00021917,2]
[377902818,1754610640154,-1103.87,0.00021917,2]
[377902819,1754610640164,-460.0,0.00021917,2]
[377902820,1754610640174,-460.0,0.00021917,2]
[377902821,1754610640183,-460.0,0.00021917,2]
[377902822,1754610640193,-460.0,0.00021917,2]
[377902823,1754610640203,-460.0,0.00021917,2]
[377902824,1754610640213,-467.90353479,0.00021917,2]
[377902825,1754610640222,-460.0,0.00021917,2]
[377902826,1754610640232,-460.0,0.00021917,2]
[377902827,1754610640242,-693.2,0.00021917,2]
[377902828,1754610640251,-1814.78,0.00021917,2]
[377902829,1754610640261,-460.0,0.00021917,2]
[377902830,1754610640459,-460.0,0.00021917,2]
[377902831,1754610640477,-460.0,0.00021917,2]
[377902832,1754610640489,-483.46454058,0.00021917,2]
[377902833,1754610640499,-460.0,0.00021917,2]
[377902834,1754610640510,-460.0,0.00021917,2]
[377902835,1754610640519,-460.0,0.00021917,2]
[377902836,1754610640529,-460.0,0.00021917,2]
[377902837,1754610640539,-460.0,0.00021917,2]
[377902838,1754610640548,-460.0,0.00021917,2]
[377902839,1754610640558,-468.72952287,0.00021917,2]
[377902840,1754610640567,-740.8,0.00021917,2]
[377902841,1754610640576,-460.0,0.00021917,2]
[377902842,1754610640585,-154.31968979,0.00021917,2]
[377902843,1754610640595,-565.0,0.00021917,2]
[377902844,1754610640606,-460.0,0.00021917,2]
[377902845,1754610640615,-460.0,0.00021917,2]
[377902846,1754610640624,-460.0,0.00021917,2]
[377902847,1754610640634,-460.0,0.00021917,2]
[377902848,1754610640643,-460.0,0.00021917,2]
[377902849,1754610640652,-460.0,0.00021917,2]
[377902850,1754610640661,-460.0,0.00021917,2]
[377902851,1754610640670,-460.0,0.00021917,2]
[377902852,1754610640680,-1744.23,0.00021917,2]
[377902853,1754610640689,-460.0,0.00021917,2]
[377902854,1754610640698,-2016.26,0.00021917,2]
[377902855,1754610640708,-460.0,0.00021917,2]
[377902856,1754610640718,-460.0,0.00021917,2]
[377902857,1754610640727,-460.0,0.00021917,2]
[377902858,1754610640736,-460.0,0.00021917,2]
[377902859,1754610640745,-460.0,0.00021917,2]
[377902860,1754610640755,-460.0,0.00021917,2]
[377902861,1754610640764,-825.35,0.00021917,2]
[377902862,1754610640774,-460.0,0.00021917,2]
[377902863,1754610640784,-460.0,0.00021917,2]
[377902864,1754610640793,-460.0,0.00021917,2]
[377902865,1754610640802,-1184.54,0.00021917,2]
[377902866,1754610640812,-460.0,0.00021917,2]
[377902867,1754610640822,-460.0,0.00021917,2]
[377902868,1754610640831,-460.0,0.00021917,2]
[377902869,1754610640841,-460.0,0.00021917,2]
[377902870,1754610640851,-460.0,0.00021917,2]
[377902871,1754610640861,-460.0,0.00021917,2]
[377902872,1754610640870,-460.0,0.00021917,2]
[377902873,1754610640880,-460.0,0.00021917,2]
[377902874,1754610640889,-460.0,0.00021917,2]
[377902875,1754610640898,-460.0,0.00021917,2]
[377902876,1754610640908,-460.0,0.00021917,2]
[377902877,1754610640917,-460.0,0.00021917,2]
[377902878,1754610640927,-460.0,0.00021917,2]
[377902879,1754610640936,-460.0,0.00021917,2]
[377902880,1754610640945,-460.0,0.00021917,2]
[377902881,1754610640955,-242.14828515,0.00021917,2]
[377902882,1754610640964,-460.0,0.00021917,2]
[377902883,1754610640973,-460.0,0.00021917,2]
[377902884,1754610640982,-460.0,0.00021917,2]
[377902885,1754610640992,-460.0,0.00021917,2]
[377902887,1754610641001,-460.0,0.00021917,2]
[377902889,1754610641011,-460.0,0.00021917,2]
[377902890,1754610641020,-460.0,0.00021917,2]
[377902891,1754610641029,-460.0,0.00021917,2]
[377902892,1754610641038,-460.0,0.00021917,2]
[377902893,1754610641048,-462.52784332,0.00021917,2]
[377902894,1754610641059,-470.96372792,0.00021917,2]
[377902895,1754610641069,-460.0,0.00021917,2]
[377902896,1754610641078,-460.0,0.00021917,2]
[377902897,1754610641087,-611.3,0.00021917,2]
[377902898,1754610641096,-460.0,0.00021917,2]
[377902899,1754610641108,-460.0,0.00021917,2]
[377902900,1754610641120,-460.0,0.00021917,2]
[377902901,1754610641129,-460.0,0.00021917,2]
[377902902,1754610641139,-625.24,0.00021917,2]
[377902903,1754610641148,-460.0,0.00021917,2]
[377902904,1754610641158,-460.0,0.00021917,2]
[377902905,1754610641167,-460.0,0.00021917,2]
[377902906,1754610641176,-460.0,0.00021917,2]
[377902907,1754610641185,-460.0,0.00021917,2]
[377902909,1754610641195,-657.53,0.00021917,2]
[377902911,1754610641204,-460.0,0.00021917,2]
[377902913,1754610641214,-460.0,0.00021917,2]
[377902915,1754610641223,-752.77,0.00021917,2]
[377902916,1754610641232,-460.0,0.00021917,2]
[377902917,1754610641241,-460.0,0.00021917,2]
[377902918,1754610641251,-460.0,0.00021917,2]
[377902919,1754610641260,-1123.57,0.00021917,2]
[377902920,1754610641269,-461.3,0.00021917,2]
[377902921,1754610641279,-789.58,0.00021917,2]
[377902922,1754610641288,-460.0,0.00021917,2]
[377902923,1754610641297,-460.0,0.00021917,2]
[377902924,1754610641307,-460.0,0.00021917,2]
[377902925,1754610641316,-460.0,0.00021917,2]
[377902926,1754610641326,-460.0,0.00021917,2]
[377902927,1754610641335,-460.0,0.00021917,2]
[377902928,1754610641345,-460.0,0.00021917,2]
[377902929,1754610641356,-460.0,0.00021917,2]
[377902930,1754610641365,-460.0,0.00021917,2]
[377902931,1754610641375,-460.0,0.00021917,2]
[377902932,1754610641384,-460.0,0.00021917,2]
[377902933,1754610641394,-460.0,0.00021917,2]
[377902934,1754610641403,-468.9,0.00021917,2]
[377902936,1754610641413,-465.695138,0.00021917,2]
[377902937,1754610641422,-460.0,0.00021917,2]
[377902938,1754610641432,-460.0,0.00021917,2]
[377902939,1754610641442,-460.0,0.00021917,2]
[377902940,1754610641452,-726.86,0.00021917,2]
[377902941,1754610641461,-460.0,0.00021917,2]
[377902942,1754610641471,-460.0,0.00021917,2]
[377902943,1754610641480,-460.0,0.00021917,2]
[377902944,1754610641489,-460.0,0.00021917,2]
[377902945,1754610641499,-269.12731385,0.00021917,2]
[377902946,1754610641508,-460.0,0.00021917,2]
[377902947,1754610641518,-460.0,0.00021917,2]
[377902948,1754610641527,-460.0,0.00021917,2]
[377902949,1754610641536,-460.0,0.00021917,2]
[377902950,1754610641546,-460.0,0.00021917,2]
[377902951,1754610641555,-518.1698959,0.00021917,2]
[377902952,1754610641565,-462.57887394,0.00021917,2]
[377902953,1754610641574,-440.02490274,0.00021917,2]
[377902954,1754610641583,-460.0,0.00021917,2]
[377902955,1754610641592,-460.0,0.00021917,2]
[377902956,1754610641603,-460.0,0.00021917,2]
[377902957,1754610641613,-460.0,0.00021917,2]
[377902958,1754610641622,-460.0,0.00021917,2]
[377902959,1754610641632,-460.0,0.00021917,2]
[377902960,1754610641641,-460.0,0.00021917,2]
[377902961,1754610641650,-1252.34,0.00021917,2]
[377902962,1754610641660,-460.0,0.00021917,2]
[377902963,1754610641669,-638.71,0.00021917,2]
[377902964,1754610641678,-460.0,0.00021917,2]
[377902965,1754610641687,-460.0,0.00021917,2]
[377902966,1754610641697,-460.0,0.00021917,2]
[377902967,1754610641706,-460.0,0.00021917,2]
[377902968,1754610641715,-460.0,0.00021917,2]
[377902969,1754610641726,-747.88,0.00021917,2]
[377902970,1754610641735,-460.0,0.00021917,2]
[377902971,1754610641744,-460.0,0.00021917,2]
[377902972,1754610641753,-460.0,0.00021917,2]
[377902973,1754610641763,-460.0,0.00021917,2]
[377902974,1754610641772,-460.0,0.00021917,2]
[377902975,1754610641781,-460.0,0.00021917,2]
[377902976,1754610641791,-460.0,0.00021917,2]
[377902977,1754610641800,-460.0,0.00021917,2]
[377902978,1754610641809,-460.0,0.00021917,2]
[377902979,1754610641819,-460.0,0.00021917,2]
[377902980,1754610641828,-460.0,0.00021917,2]
[377902981,1754610641837,-460.0,0.00021917,2]
[377902982,1754610641847,-460.0,0.00021917,2]
[377902983,1754610641857,-460.0,0.00021917,2]
[377902984,1754610641866,-500.0,0.00021973,2]
[377902985,1754610641876,-504.35785339,0.00021973,2]
[377902986,1754610641885,-500.0,0.00021973,2]
[377902987,1754610641894,-500.0,0.00021973,2]
[377902988,1754610641904,-156.0,0.00022,2]
[377902989,1754610641913,-218.91,0.00022062,2]
[377902990,1754610641922,-194.07,0.00022062,2]
[377902991,1754610641932,-999.46,0.00022181,3]
[377902992,1754610641940,-499.73,0.00022181,3]
[377902993,1754610641950,-249.87,0.00022181,3]
[377902994,1754610641959,-749.61,0.00022181,3]
[377902995,1754610641968,-1397.12,0.0002219,2]
[377902996,1754610641977,-460.0,0.0002219,2]
[377902997,1754610641987,-466.81628277,0.0002219,2]
[377902998,1754610641996,-460.0,0.0002219,2]
[377902999,1754610642006,-460.0,0.0002219,2]
[377903000,1754610642016,-460.0,0.0002219,2]
[377903001,1754610642026,-831.66,0.0002219,2]
[377903002,1754610642035,-460.0,0.0002219,2]
[377903003,1754610642044,-460.0,0.0002219,2]
[377903004,1754610642054,-460.0,0.00022191,2]
[377903005,1754610642063,-460.0,0.00022191,2]
[377903006,1754610642073,-460.0,0.00022191,2]
[377903007,1754610642083,-460.0,0.00022191,2]
[377903008,1754610642092,-460.0,0.00022191,2]
[377903009,1754610642101,-460.0,0.00022191,2]
[377903010,1754610642111,-460.0,0.00022191,2]
[377903011,1754610642123,-460.0,0.00022191,2]
[377903012,1754610642132,-460.0,0.00022191,2]
[377903013,1754610642142,-460.0,0.00022191,2]
[377903014,1754610642151,-460.0,0.00022191,2]
[377903015,1754610642161,-460.0,0.00022191,2]
[377903016,1754610642171,-460.0,0.00022191,2]
[377903017,1754610642180,-460.0,0.00022191,2]
[377903018,1754610642190,-641.17,0.00022191,2]
[377903019,1754610642200,-460.0,0.00022191,2]
[377903020,1754610642210,-460.0,0.00022191,2]
[377903021,1754610642218,-460.0,0.00022191,2]
[377903022,1754610642227,-2781.79,0.00022191,2]
[377903023,1754610642237,-460.0,0.00022191,2]
[377903024,1754610642246,-460.0,0.00022191,2]
[377903025,1754610642255,-460.0,0.00022191,2]
[377903026,1754610642264,-460.0,0.00022191,2]
[377903027,1754610642273,-460.0,0.00022191,2]
[377903028,1754610642283,-306.72,0.00022191,2]
[377903029,1754610642292,-460.0,0.00022191,2]
[377903030,1754610642301,-518.68539951,0.00022191,2]
[377903031,1754610642311,-1103.87,0.00022191,2]
[377903032,1754610642320,-460.0,0.00022191,2]
[377903033,1754610642333,-693.2,0.00022191,2]
[377903034,1754610642343,-1814.78,0.00022191,2]
[377903035,1754610642352,-460.0,0.00022191,2]
[377903036,1754610642361,-460.0,0.00022191,2]
[377903037,1754610642371,-460.0,0.00022191,2]
[377903038,1754610642380,-740.8,0.00022191,2]
[377903039,1754610642389,-565.0,0.00022191,2]
[377903041,1754610642398,-460.0,0.00022191,2]
[377903043,1754610642408,-460.0,0.00022191,2]
[377903045,1754610642418,-460.0,0.00022191,2]
[377903046,1754610642430,-1744.23,0.00022191,2]
[377903048,1754610642439,-460.0,0.00022191,2]
[377903050,1754610642448,-2016.26,0.00022191,2]
[377903052,1754610642458,-825.35,0.00022191,2]
[377903054,1754610642468,-1184.54,0.00022191,2]
[377903056,1754610642478,-460.0,0.00022191,2]
[377903058,1754610642487,-475.55,0.00022191,2]
[377903060,1754610642497,-288.68,0.00022191,2]
[377903062,1754610642506,-460.0,0.00022191,2]
[377903063,1754610642516,-460.0,0.00022191,2]
[377903065,1754610642525,-460.0,0.00022191,2]
[377903067,1754610642535,-460.0,0.00022191,2]
[377903070,1754610642544,-460.0,0.00022191,2]
[377903072,1754610642553,-460.0,0.00022191,2]
[377903074,1754610642564,-611.3,0.00022191,2]
[377903076,1754610642573,-625.24,0.00022191,2]
[377903077,1754610642582,-460.0,0.00022191,2]
[377903078,1754610642592,-460.0,0.00022191,2]
[377903079,1754610642603,-460.0,0.00022191,2]
[377903081,1754610642613,-657.53,0.00022191,2]
[377903083,1754610642623,-476.97,0.00022191,2]
[377903085,1754610642632,-752.77,0.00022191,2]
[377903087,1754610642641,-460.0,0.00022191,2]
[377903089,1754610642651,-461.3,0.00022191,2]
[377903091,1754610642660,-1123.57,0.00022191,2]
[377903093,1754610642669,-789.58,0.00022191,2]
[377903095,1754610642678,-460.0,0.00022191,2]
[377903097,1754610642688,-236.5627385,0.00022191,2]
[377903099,1754610642697,-460.0,0.00022191,2]
[377903101,1754610642707,-468.9,0.00022191,2]